fUSD/lending_fUSD_20240828
["ID","MTS","AMOUNT","RATE_DAILY","PERIOD"]
[336504398,1724885132994,-2181.47,0.00039178,120]
[336504399,1724885133038,-500.0,0.00039178,120]
[336504400,1724885133084,-2580.18,0.00039178,120]
[336504401,1724885133132,-500.0,0.00039178,120]
[336504402,1724885133185,-500.0,0.00039178,120]
[336504403,1724885133234,-3517.69,0.00039178,120]
[336504404,1724885133280,-798.91,0.00039178,120]
[336504405,1724885133328,-500.0,0.00039178,120]
[336504406,1724885133378,-560.94,0.00039178,120]
[336504407,1724885133434,-2185.21,0.00039178,120]
[336504408,1724885133479,-500.0,0.00039178,120]
[336504409,1724885133522,-500.0,0.00039178,120]
[336504410,1724885133564,-1243.83,0.00039178,120]
[336504411,1724885133608,-2887.18,0.00039178,120]
[336504412,1724885133657,-2570.86,0.00039178,120]
[336504413,1724885133700,-500.0,0.00039178,120]
[336504414,1724885133743,-500.0,0.00039178,120]
[336504415,1724885133785,-500.0,0.00039178,120]
[336504416,1724885133827,-1168.64,0.00039178,120]
[336504417,1724885133870,-509.66,0.00039178,120]
[336504418,1724885133914,-500.0,0.00039178,120]
[336504419,1724885133965,-1079.75,0.00039178,120]
[336504420,1724885134011,-987.94,0.00039178,120]
[336504421,1724885134061,-6286.38,0.00039178,120]
[336504422,1724885134106,-500.0,0.00039178,120]
[336504423,1724885134152,-959.62,0.00039178,120]
[336504424,1724885134196,-500.0,0.00039178,120]
[336504425,1724885134240,-500.0,0.00039178,120]
[336504426,1724885134285,-626.06,0.00039178,120]
[336504427,1724885134328,-861.0,0.00039178,120]
[336504428,1724885134371,-318.13190257,0.00039178,120]
[336504429,1724885134415,-6914.62,0.00039178,120]
[336504430,1724885134457,-500.0,0.00039178,120]
[336504431,1724885134499,-3347.76,0.00039178,120]
[336504432,1724885134542,-908.93,0.00039178,120]
[336504433,1724885134587,-4335.53,0.00039178,120]
[336504434,1724885134629,-733.36,0.00039178,120]
[336504435,1724885134673,-750.43,0.00039178,120]
[336504436,1724885134717,-500.0,0.00039178,120]
[336504437,1724885134759,-500.0,0.00039178,120]
[336504438,1724885134804,-1047.3,0.00039178,120]
[336504439,1724885134847,-1797.01,0.00039178,120]
[336504440,1724885134893,-500.0,0.00039178,120]
[336504441,1724885134938,-582.75,0.00039178,120]
[336504442,1724885134985,-2094.86,0.00039178,120]
[336504443,1724885135029,-1362.13,0.00039178,120]
[336504444,1724885135073,-1379.04,0.00039178,120]
[336504445,1724885135117,-500.0,0.00039178,120]
[336504446,1724885135161,-500.0,0.00039178,120]
[336504447,1724885135203,-1349.27,0.00039178,120]
[336504448,1724885135245,-1564.42,0.00039178,120]
[336504449,1724885135287,-1334.43,0.00039178,120]
[336504450,1724885135327,-822.87,0.00039178,120]
[336504451,1724885135368,-1022.85,0.00039178,120]
[336504452,1724885135408,-500.0,0.00039178,120]
[336504453,1724885135746,-976.33,0.00039178,120]
[336504454,1724885135791,-500.0,0.00039178,120]
[336504455,1724885135834,-656.65,0.00039178,120]
[336504456,1724885135878,-500.0,0.00039178,120]
[336504457,1724885135922,-2066.86,0.00039178,120]
[336504458,1724885135969,-2165.19,0.00039178,120]
[336504459,1724885136015,-500.0,0.00039178,120]
[336504460,1724885136060,-154.68539,0.00039178,120]
[336504461,1724885136104,-329.13,0.00039178,120]
[336504462,1724885136147,-582.22,0.00039178,120]
[336504463,1724885136191,-956.93,0.00039178,120]
[336504464,1724885136234,-500.0,0.00039178,120]
[336504465,1724885136276,-1014.77,0.00039178,120]
[336504466,1724885136318,-500.0,0.00039178,120]
[336504467,1724885136361,-1088.43,0.00039178,120]
[336504468,1724885136405,-1629.12,0.00039178,120]
[336504469,1724885136445,-500.0,0.00039178,120]
[336504470,1724885136484,-511.89,0.00039178,120]
[336504471,1724885136526,-500.0,0.00039178,120]
[336504472,1724885136568,-559.78,0.00039178,120]
[336504473,1724885136612,-4067.41,0.00039178,120]
[336504474,1724885136656,-505.57449568,0.00039178,120]
[336504475,1724885136699,-1468.53,0.00039178,120]
[336504476,1724885136748,-784.11,0.00039178,120]
[336504477,1724885136793,-2768.98,0.00039178,120]
[336504478,1724885136837,-2025.24,0.00039178,120]
[336504479,1724885136881,-2688.39,0.00039178,120]
[336504480,1724885136927,-592.64,0.00039178,120]
[336504481,1724885136974,-500.0,0.00039178,120]
[336504482,1724885137020,-2704.08,0.00039178,120]
[336504483,1724885137066,-500.0,0.00039178,120]
[336504484,1724885137110,-500.0,0.00039178,120]
[336504485,1724885137156,-1527.67,0.00039178,120]
[336504486,1724885137202,-852.5,0.00039178,120]
[336504487,1724885137249,-500.0,0.00039178,120]
[336504488,1724885137294,-3763.91,0.00039178,120]
[336504489,1724885137339,-681.13,0.00039178,120]
[336504490,1724885137381,-500.0,0.00039178,120]
[336504491,1724885137426,-879.46,0.00039178,120]
[336504492,1724885137475,-5219.13,0.00039178,120]
[336504493,1724885137517,-699.45,0.00039178,120]
[336504494,1724885137558,-1639.18,0.00039178,120]
[336504495,1724885137601,-500.0,0.00039178,120]
[336504496,1724885137646,-1528.12,0.00039178,120]
[336504497,1724885137689,-165.31,0.00039178,120]
[336504498,1724885137733,-2675.57,0.00039178,120]
[336504499,1724885137777,-500.0,0.00039178,120]
[336504500,1724885137820,-500.0,0.00039178,120]
[336504501,1724885137861,-500.0,0.00039178,120]
[336504502,1724885137903,-500.0,0.00039178,120]
[336504503,1724885137951,-500.0,0.00039178,120]
[336504504,1724885137996,-500.0,0.00039178,120]
[336504505,1724885138040,-352.15585449,0.00039178,120]
[336504506,1724885138092,-500.0,0.00039178,120]
[336504507,1724885138140,-500.0,0.00039178,120]
[336504508,1724885138188,-1337.75,0.00039178,120]
[336504509,1724885138235,-500.0,0.00039178,120]
[336504510,1724885138281,-500.0,0.00039178,120]
[336504511,1724885138327,-352.89,0.00039178,120]
[336504512,1724885138372,-1208.83,0.00039178,120]
[336504513,1724885138416,-500.0,0.00039178,120]
[336504514,1724885138461,-500.0,0.00039178,120]
[336504515,1724885138504,-500.0,0.00039178,120]
[336504516,1724885138548,-500.0,0.00039178,120]
[336504517,1724885138592,-500.0,0.00039178,120]
[336504518,1724885138637,-500.0,0.00039178,120]
[336504519,1724885138682,-1049.13,0.00039178,120]
[336504520,1724885138728,-500.0,0.00039178,120]
[336504521,1724885138774,-1767.75,0.00039178,120]
[336504522,1724885138819,-500.0,0.00039178,120]
[336504523,1724885138955,-2859.72,0.00039178,120]
[336504524,1724885139011,-987.6,0.00039178,120]
[336504525,1724885139059,-500.0,0.00039178,120]
[336504526,1724885139105,-1188.95,0.00039178,120]
[336504527,1724885139155,-500.0,0.00039178,120]
[336504528,1724885139202,-1237.97,0.00039178,120]
[336504529,1724885139247,-2836.35,0.00039178,120]
[336504530,1724885139293,-2754.45,0.00039178,120]
[336504531,1724885139340,-737.83,0.00039178,120]
[336504532,1724885139384,-233.1268492,0.00039178,120]
[336504533,1724885139432,-500.0,0.00039178,120]
[336504534,1724885139477,-500.0,0.00039178,120]
[336504535,1724885139523,-502.99073624,0.00039178,120]
[336504536,1724885139568,-2434.07,0.00039178,120]
[336504537,1724885139613,-500.0,0.00039178,120]
[336504538,1724885139659,-605.2,0.00039178,120]
[336504539,1724885139703,-3102.95,0.00039178,120]
[336504540,1724885139750,-150.0,0.00039223,120]
[336504541,1724885139797,-150.0,0.00039247,120]
[336504542,1724885139844,-150.0,0.00039271,120]
[336504543,1724885139889,-150.0,0.00039378,120]
[336504544,1724885139936,-500.0,0.00039452,120]
[336504545,1724885139984,-500.0,0.00039452,120]
[336504546,1724885140029,-665.7,0.00039452,120]
[336504547,1724885140075,-1637.12,0.00039452,120]
[336504548,1724885140120,-500.0,0.00039452,120]
[336504549,1724885140165,-500.0,0.00039452,120]
[336504550,1724885140219,-381.95439405,0.00039452,120]
[336504551,1724885140273,-1890.25,0.00039452,120]
[336504552,1724885140318,-500.0,0.00039452,120]
[336504553,1724885140362,-1232.49,0.00039452,120]
[336504554,1724885140405,-500.0,0.00039452,120]
[336504555,1724885140448,-500.0,0.00039452,120]
[336504556,1724885140490,-1152.38,0.00039452,120]
[336504557,1724885140533,-500.0,0.00039452,120]
[336504558,1724885140574,-1560.58,0.00039452,120]
[336504559,1724885140616,-1202.28,0.00039452,120]
[336504560,1724885140659,-2893.43,0.00039452,120]
[336504561,1724885140701,-500.0,0.00039452,120]
[336504562,1724885140744,-500.0,0.00039452,120]
[336504563,1724885140786,-500.0,0.00039452,120]
[336504564,1724885140832,-1236.34,0.00039452,120]
[336504565,1724885140882,-682.55,0.00039452,120]
[336504566,1724885140929,-684.68,0.00039452,120]
[336504567,1724885140980,-771.76,0.00039452,120]
[336504568,1724885141026,-784.83,0.00039452,120]
[336504569,1724885141071,-500.0,0.00039452,120]
[336504570,1724885141113,-500.0,0.00039452,120]
[336504571,1724885141159,-956.56,0.00039452,120]
[336504572,1724885141204,-573.85,0.00039452,120]
[336504573,1724885141247,-500.0,0.00039452,120]
[336504574,1724885141293,-668.17,0.00039452,120]
[336504575,1724885141337,-1716.27,0.00039452,120]
[336504576,1724885141379,-1114.77,0.00039452,120]
[336504577,1724885141420,-2014.95,0.00039452,120]
[336504578,1724885141464,-500.0,0.00039452,120]
[336504579,1724885141509,-523.63,0.00039452,120]
[336504580,1724885141554,-548.63,0.00039452,120]
[336504581,1724885141596,-500.0,0.00039452,120]
[336504582,1724885141637,-665.94,0.00039452,120]
[336504583,1724885141680,-929.68,0.00039452,120]
[336504584,1724885141722,-1229.1,0.00039452,120]
[336504585,1724885141763,-615.75,0.00039452,120]
[336504586,1724885141805,-500.0,0.00039452,120]
[336504587,1724885141848,-970.13,0.00039452,120]
[336504588,1724885141890,-500.0,0.00039452,120]
[336504589,1724885141934,-500.0,0.00039452,120]
[336504590,1724885141983,-500.0,0.00039452,120]
[336504591,1724885142025,-1984.75,0.00039452,120]
[336504592,1724885142069,-1122.0,0.00039452,120]
[336504593,1724885142112,-2199.85,0.00039452,120]
[336504594,1724885142159,-1901.82,0.00039452,120]
[336504595,1724885142206,-500.0,0.00039452,120]
[336504596,1724885142248,-1482.11,0.00039452,120]
[336504597,1724885142289,-500.0,0.00039452,120]
[336504598,1724885142333,-623.17,0.00039452,120]
[336504599,1724885142379,-1335.08,0.00039452,120]
[336504600,1724885142421,-756.9,0.00039452,120]
[336504601,1724885142464,-500.0,0.00039452,120]
[336504602,1724885142506,-846.34,0.00039452,120]
[336504603,1724885142549,-500.0,0.00039452,120]
[336504604,1724885142591,-500.0,0.00039452,120]
[336504605,1724885142635,-500.0,0.00039452,120]
[336504606,1724885142684,-2503.52,0.00039452,120]
[336504607,1724885142729,-574.01,0.00039452,120]
[336504608,1724885142773,-1905.76,0.00039452,120]
[336504609,1724885142818,-502.75417424,0.00039452,120]
[336504610,1724885142862,-267.29980483,0.00039452,120]
[336504611,1724885142907,-511.67,0.00039452,120]
[336504612,1724885142951,-300.0,0.00039452,120]
[336504613,1724885142994,-727.7,0.00039452,120]
[336504614,1724885143036,-701.84,0.00039452,120]
[336504615,1724885143080,-2965.69,0.00039452,120]
[336504616,1724885143125,-1006.37,0.00039452,120]
[336504617,1724885143172,-500.0,0.00039452,120]
[336504618,1724885143217,-500.0,0.00039452,120]
[336504619,1724885143263,-500.0,0.00039452,120]
[336504620,1724885143304,-591.01,0.00039452,120]
[336504621,1724885143347,-2737.03,0.00039452,120]
[336504622,1724885143389,-500.0,0.00039452,120]
[336504623,1724885143435,-500.0,0.00039452,120]
[336504624,1724885143480,-851.97,0.00039452,120]
[336504625,1724885143523,-500.0,0.00039452,120]
[336504626,1724885143567,-500.0,0.00039452,120]
[336504627,1724885143611,-892.0,0.00039452,120]
[336504628,1724885143656,-1003.05,0.00039452,120]
[336504629,1724885143698,-500.0,0.00039452,120]
[336504630,1724885143745,-582.59,0.00039452,120]
[336504631,1724885143789,-500.0,0.00039452,120]
[336504632,1724885143834,-500.0,0.00039452,120]
[336504633,1724885143880,-500.0,0.00039452,120]
[336504634,1724885143928,-1073.06,0.00039452,120]
[336504635,1724885143978,-617.87283915,0.00039452,120]
[336504636,1724885144027,-1617.64,0.00039452,120]
[336504637,1724885144074,-500.0,0.00039452,120]
[336504638,1724885144123,-500.0,0.00039452,120]
[336504639,1724885144172,-500.0,0.00039452,120]
[336504640,1724885144218,-655.16,0.00039452,120]
[336504641,1724885144264,-861.75,0.00039452,120]
[336504642,1724885144309,-735.62,0.00039452,120]
[336504643,1724885144354,-1526.14,0.00039452,120]
[336504644,1724885144400,-872.22,0.00039452,120]
[336504645,1724885144444,-621.52,0.00039452,120]
[336504646,1724885144489,-580.64,0.00039452,120]
[336504647,1724885144534,-747.48,0.00039452,120]
[336504648,1724885144577,-527.87,0.00039452,120]
[336504649,1724885144629,-967.11,0.00039452,120]
[336504650,1724885144678,-500.0,0.00039452,120]
[336504651,1724885144724,-500.0,0.00039452,120]
[336504652,1724885144770,-536.35,0.00039452,120]
[336504653,1724885144815,-836.71,0.00039452,120]
[336504654,1724885144862,-500.0,0.00039452,120]
[336504655,1724885144911,-812.54,0.00039452,120]
[336504656,1724885144962,-502.36799028,0.00039452,120]
[336504657,1724885145009,-693.4,0.00039452,120]
[336504658,1724885145057,-532.04,0.00039452,120]
[336504659,1724885145105,-979.14,0.00039452,120]
[336504660,1724885145155,-500.0,0.00039452,120]
[336504661,1724885145199,-737.06,0.00039452,120]
[336504662,1724885145247,-500.0,0.00039452,120]
[336504663,1724885145292,-901.28,0.00039452,120]
[336504664,1724885145346,-601.1,0.00039452,120]
[336504665,1724885145402,-500.0,0.00039452,120]
[336504666,1724885145457,-188.02170209,0.00039452,120]
[336504667,1724885145504,-500.0,0.00039452,120]
[336504668,1724885145553,-500.0,0.00039452,120]
[336504669,1724885145601,-634.11194186,0.00039452,120]
[336504670,1724885145652,-557.6,0.00039452,120]
[336504671,1724885145706,-500.0,0.00039452,120]
[336504672,1724885145754,-562.83,0.00039452,120]
[336504673,1724885145802,-500.0,0.00039452,120]
[336504674,1724885145858,-2883.89,0.00039452,120]
[336504675,1724885145905,-500.0,0.00039452,120]
[336504676,1724885145951,-581.3,0.00039452,120]
[336504677,1724885145999,-500.0,0.00039452,120]
[336504678,1724885146045,-500.0,0.00039452,120]
[336504679,1724885146093,-500.0,0.00039452,120]
[336504680,1724885146142,-845.82,0.00039452,120]
[336504681,1724885146191,-767.15,0.00039452,120]
[336504682,1724885146240,-526.57,0.00039452,120]
[336504683,1724885146286,-950.29,0.00039452,120]
[336504684,1724885146334,-963.87,0.00039452,120]
[336504685,1724885146382,-500.0,0.00039452,120]
[336504686,1724885146436,-588.75,0.00039452,120]
[336504687,1724885146484,-1786.17,0.00039452,120]
[336504688,1724885146532,-500.0,0.00039452,120]
[336504689,1724885146587,-500.0,0.00039452,120]
[336504690,1724885146898,-632.95,0.00039452,120]
[336504691,1724885146947,-681.27,0.00039452,120]
[336504692,1724885146992,-500.0,0.00039452,120]
[336504693,1724885147038,-645.73,0.00039452,120]
[336504694,1724885147083,-500.0,0.00039452,120]
[336504695,1724885147126,-500.0,0.00039452,120]
[336504696,1724885147173,-735.99,0.00039452,120]
[336504697,1724885147218,-648.62,0.00039452,120]
[336504698,1724885147260,-500.0,0.00039452,120]
[336504699,1724885147304,-500.0,0.00039452,120]
[336504700,1724885147348,-500.0,0.00039452,120]
[336504701,1724885147393,-503.19471684,0.00039452,120]
[336504702,1724885147440,-500.0,0.00039452,120]
[336504703,1724885147485,-616.04,0.00039452,120]
[336504704,1724885147531,-500.0,0.00039452,120]
[336504705,1724885147577,-500.0,0.00039452,120]
[336504706,1724885147622,-2439.04,0.00039452,120]
[336504707,1724885147669,-500.0,0.00039452,120]
[336504708,1724885147713,-500.0,0.00039452,120]
[336504709,1724885147757,-500.0,0.00039452,120]
[336504710,1724885147801,-500.0,0.00039452,120]
[336504711,1724885147844,-500.0,0.00039452,120]
[336504712,1724885147891,-546.54,0.00039452,120]
[336504713,1724885147943,-500.0,0.00039452,120]
[336504714,1724885147987,-767.27,0.00039452,120]
[336504715,1724885148033,-1649.5,0.00039452,120]
[336504716,1724885148078,-500.0,0.00039452,120]
[336504717,1724885148125,-500.0,0.00039452,120]
[336504718,1724885148172,-500.0,0.00039452,120]
[336504719,1724885148217,-920.34,0.00039452,120]
[336504720,1724885148262,-500.0,0.00039452,120]
[336504721,1724885148308,-1602.01,0.00039452,120]
[336504722,1724885148351,-500.0,0.00039452,120]
[336504723,1724885148397,-500.0,0.00039452,120]
[336504724,1724885148445,-284.9611211,0.00039452,120]
[336504725,1724885148489,-1237.97,0.00039452,120]
[336504726,1724885148532,-695.29,0.00039452,120]
[336504727,1724885148578,-500.0,0.00039452,120]
[336504728,1724885148624,-783.4,0.00039452,120]
[336504729,1724885148670,-500.0,0.00039452,120]
[336504730,1724885148715,-500.0,0.00039452,120]
[336504731,1724885148759,-938.63,0.00039452,120]
[336504732,1724885148813,-500.0,0.00039452,120]
[336504733,1724885148864,-602.21,0.00039452,120]
[336504734,1724885148908,-1153.16,0.00039452,120]
[336504735,1724885148954,-3043.86,0.00039452,120]
[336504736,1724885149007,-500.0,0.00039452,120]
[336504737,1724885149056,-500.0,0.00039452,120]
[336504738,1724885149101,-500.0,0.00039452,120]
[336504739,1724885149150,-500.0,0.00039452,120]
[336504740,1724885149195,-500.0,0.00039452,120]
[336504741,1724885149240,-1459.32,0.00039452,120]
[336504742,1724885149288,-570.39,0.00039452,120]
[336504743,1724885149332,-765.63,0.00039452,120]
[336504744,1724885149376,-500.0,0.00039452,120]
[336504745,1724885149432,-1361.63,0.00039452,120]
[336504746,1724885149488,-826.45,0.00039452,120]
[336504747,1724885149536,-976.24,0.00039452,120]
[336504748,1724885149581,-500.0,0.00039452,120]
[336504749,1724885149630,-500.0,0.00039452,120]
[336504750,1724885149683,-500.0,0.00039452,120]
[336504751,1724885149730,-500.0,0.00039452,120]
[336504752,1724885149776,-658.32,0.00039452,120]
[336504753,1724885149829,-548.15,0.00039452,120]
[336504754,1724885149884,-956.47,0.00039452,120]
[336504755,1724885149934,-1040.07,0.00039452,120]
[336504756,1724885149983,-500.0,0.00039452,120]
[336504757,1724885150035,-625.91,0.00039452,120]
[336504758,1724885150087,-870.44,0.00039452,120]
[336504759,1724885150133,-743.88,0.00039452,120]
[336504760,1724885150191,-500.0,0.00039452,120]
[336504761,1724885150236,-837.56,0.00039452,120]
[336504762,1724885150281,-500.0,0.00039452,120]
[336504763,1724885150325,-500.0,0.00039452,120]
[336504764,1724885150370,-1149.51,0.00039452,120]
[336504765,1724885150413,-509.00784238,0.00039452,120]
[336504766,1724885150457,-533.96306611,0.00039452,120]
[336504767,1724885150500,-523.53,0.00039452,120]
[336504768,1724885150542,-500.0,0.00039452,120]
[336504769,1724885150585,-500.0,0.00039452,120]
[336504771,1724885150628,-500.0,0.00039452,120]
[336504772,1724885150672,-558.21,0.00039452,120]
[336504773,1724885150716,-544.32,0.00039452,120]
[336504774,1724885150757,-500.0,0.00039452,120]
[336504775,1724885150799,-779.74,0.00039452,120]
[336504776,1724885150843,-500.0,0.00039452,120]
[336504778,1724885150889,-1466.85,0.00039452,120]
[336504779,1724885150934,-500.0,0.00039452,120]
[336504780,1724885150984,-500.0,0.00039452,120]
[336504781,1724885151028,-500.0,0.00039452,120]
[336504782,1724885151072,-2093.98,0.00039452,120]
[336504783,1724885151116,-500.0,0.00039452,120]
[336504784,1724885151158,-536.15,0.00039452,120]
[336504786,1724885151200,-500.0,0.00039452,120]
[336504787,1724885151240,-500.0,0.00039452,120]
[336504788,1724885151279,-1222.21,0.00039452,120]
[336504789,1724885151322,-656.58,0.00039452,120]
[336504790,1724885151365,-500.0,0.00039452,120]
[336504791,1724885151406,-500.0,0.00039452,120]
[336504792,1724885151449,-500.0,0.00039452,120]
[336504793,1724885151492,-625.62,0.00039452,120]
[336504796,1724885151741,-500.0,0.00039452,120]
[336504797,1724885151795,-5139.97,0.00039452,120]
[336504798,1724885151838,-2854.89,0.00039452,120]
[336504799,1724885151886,-1235.48,0.00039452,120]
[336504800,1724885151932,-500.0,0.00039452,120]
[336504802,1724885151979,-500.0,0.00039452,120]
[336504803,1724885152026,-2541.48,0.00039452,120]
[336504804,1724885152070,-811.8,0.00039452,120]
[336504805,1724885152116,-500.0,0.00039452,120]
[336504806,1724885152163,-1000.0,0.00039452,120]
[336504807,1724885152207,-4255.4,0.00039452,120]
[336504808,1724885152251,-2305.54,0.00039452,120]
[336504809,1724885152295,-500.0,0.00039452,120]
[336504811,1724885152338,-2748.49,0.00039452,120]
[336504812,1724885152381,-668.39,0.00039452,120]
[336504813,1724885152426,-500.0,0.00039452,120]
[336504814,1724885152469,-722.98,0.00039452,120]
[336504815,1724885152518,-500.0,0.00039452,120]
[336504816,1724885152562,-1419.39,0.00039452,120]
[336504817,1724885152614,-1983.41,0.00039452,120]
[336504818,1724885152665,-607.37,0.00039452,120]
[336504819,1724885152707,-500.0,0.00039452,120]
[336504820,1724885152750,-500.0,0.00039452,120]
[336504821,1724885152793,-500.0,0.00039452,120]
[336504822,1724885152839,-500.0,0.00039452,120]
[336504823,1724885152884,-500.0,0.00039452,120]
[336504824,1724885152928,-500.0,0.00039452,120]
[336504825,1724885152975,-513.17,0.00039452,120]
[336504826,1724885153021,-182.44377108,0.00039452,120]
[336504827,1724885153066,-500.0,0.00039452,120]
[336504828,1724885153110,-500.0,0.00039452,120]
[336504829,1724885153156,-699.74,0.00039452,120]
[336504830,1724885153210,-544.16,0.00039452,120]
[336504831,1724885153253,-1353.05,0.00039452,120]
[336504832,1724885153294,-500.0,0.00039452,120]
[336504833,1724885153335,-1578.8,0.00039452,120]
[336504834,1724885153376,-650.1,0.00039452,120]
[336504835,1724885153416,-724.51,0.00039452,120]
[336504836,1724885153456,-525.16,0.00039452,120]
[336504837,1724885153497,-500.0,0.00039452,120]
[336504838,1724885153548,-646.13,0.00039452,120]
[336504839,1724885153596,-712.62,0.00039452,120]
[336504840,1724885153639,-760.7,0.00039452,120]
[336504841,1724885153691,-510.68,0.00039452,120]
[336504842,1724885153733,-500.0,0.00039452,120]
[336504843,1724885153774,-500.0,0.00039452,120]
[336504844,1724885153816,-1151.24,0.00039452,120]
[336504845,1724885153866,-853.15,0.00039452,120]
[336504846,1724885153922,-1081.87,0.00039452,120]
[336504847,1724885153968,-500.0,0.00039452,120]
[336504848,1724885154013,-1577.59,0.00039452,120]
[336504849,1724885154062,-1426.97,0.00039452,120]
[336504850,1724885154107,-858.98,0.00039452,120]
[336504851,1724885154154,-500.0,0.00039452,120]
[336504852,1724885154199,-500.0,0.00039452,120]
[336504853,1724885154242,-838.83,0.00039452,120]
[336504854,1724885154293,-732.52,0.00039452,120]
[336504855,1724885154339,-500.0,0.00039452,120]
[336504856,1724885154384,-151.93571001,0.00039452,120]
[336504857,1724885154429,-1236.81,0.00039452,120]
[336504858,1724885154472,-927.97,0.00039452,120]
[336504859,1724885154516,-500.0,0.00039452,120]
[336504860,1724885154559,-581.34,0.00039452,120]
[336504861,1724885154602,-2238.12,0.00039452,120]
[336504862,1724885154646,-500.0,0.00039452,120]
[336504863,1724885154702,-500.0,0.00039452,120]
[336504864,1724885154755,-2145.91,0.00039452,120]
[336504865,1724885154800,-500.0,0.00039452,120]
[336504866,1724885154844,-954.22,0.00039452,120]
[336504867,1724885154890,-2906.13,0.00039452,120]
[336504868,1724885154942,-500.0,0.00039452,120]
[336504869,1724885154988,-500.0,0.00039452,120]
[336504870,1724885155033,-500.0,0.00039452,120]
[336504871,1724885155079,-500.0,0.00039452,120]
[336504872,1724885155124,-702.32,0.00039452,120]
[336504873,1724885155168,-500.0,0.00039452,120]
[336504874,1724885155214,-1408.81,0.00039452,120]
[336504875,1724885155271,-2360.29,0.00039452,120]
[336504876,1724885155315,-500.0,0.00039452,120]
[336504877,1724885155357,-500.0,0.00039452,120]
[336504878,1724885155400,-500.0,0.00039452,120]
[336504879,1724885155444,-1080.11,0.00039452,120]
[336504880,1724885155488,-3567.54,0.00039452,120]
[336504881,1724885155531,-500.0,0.00039452,120]
[336504882,1724885155575,-929.85,0.00039452,120]
[336504883,1724885155619,-500.0,0.00039452,120]
[336504884,1724885155661,-500.0,0.00039452,120]
[336504885,1724885155704,-923.89,0.00039452,120]
[336504886,1724885155749,-500.0,0.00039452,120]
[336504887,1724885155792,-500.0,0.00039452,120]
[336504888,1724885155835,-500.0,0.00039452,120]
[336504889,1724885155877,-467.64756301,0.00039452,120]
[336504890,1724885155921,-500.0,0.00039452,120]
[336504891,1724885155965,-500.0,0.00039452,120]
[336504892,1724885156009,-2930.57,0.00039452,120]
[336504893,1724885156054,-858.15,0.00039452,120]
[336504894,1724885156098,-1826.38,0.00039452,120]
[336504895,1724885156142,-1455.66,0.00039452,120]
[336504896,1724885156187,-500.0,0.00039452,120]
[336504897,1724885156230,-642.92,0.00039452,120]
[336504898,1724885156274,-500.0,0.00039452,120]
[336504899,1724885156318,-500.0,0.00039452,120]
[336504900,1724885156362,-1610.74,0.00039452,120]
[336504901,1724885156405,-500.0,0.00039452,120]
[336504902,1724885156449,-500.0,0.00039452,120]
[336504903,1724885156719,-1536.25,0.00039452,120]
[336504904,1724885156765,-809.06,0.00039452,120]